[Event "Early-Titled-Tuesday-Blitz-July-09-2024"]
[Site "Chess.com"]
[Date "2024.07.09"]
[Round "9"]
[White "Sadykov_Ramil"]
[Black "wild3000"]
[Result "1-0"]
[WhiteElo "2634"]
[BlackElo "2472"]
[TimeControl "180+1"]
[EndTime "9:47:10 PDT"]
[Termination "Sadykov_Ramil won by resignation"]

1. e4 {[%clk 0:03:00.9]} 1... e6 {[%clk 0:02:59.6]} 2. d4 {[%clk 0:02:59.4]}
2... d5 {[%clk 0:02:58.1]} 3. exd5 {[%clk 0:02:59.3]} 3... exd5 {[%clk
0:02:56.8]} 4. Bd3 {[%clk 0:02:59.9]} 4... Nf6 {[%clk 0:02:56.4]} 5. h3 {[%clk
0:02:55.7]} 5... Be7 {[%clk 0:02:52]} 6. Bf4 {[%clk 0:02:47]} 6... O-O {[%clk
0:02:51.7]} 7. Qf3 {[%clk 0:02:32.5]} 7... c5 {[%clk 0:02:49.2]} 8. dxc5 {[%clk
0:02:27.7]} 8... Nc6 {[%clk 0:02:47.3]} 9. Ne2 {[%clk 0:02:26.2]} 9... Bxc5
{[%clk 0:02:45.9]} 10. O-O {[%clk 0:02:26.1]} 10... Nb4 {[%clk 0:02:35.1]} 11.
Nbc3 {[%clk 0:02:19.6]} 11... Nxd3 {[%clk 0:02:34.7]} 12. Qxd3 {[%clk
0:02:20.5]} 12... d4 {[%clk 0:02:28.5]} 13. Ne4 {[%clk 0:02:10.3]} 13... Nxe4
{[%clk 0:02:26.1]} 14. Qxe4 {[%clk 0:02:09.8]} 14... Re8 {[%clk 0:02:25.8]} 15.
Qd3 {[%clk 0:02:04.7]} 15... Qf6 {[%clk 0:02:23.7]} 16. Bg3 {[%clk 0:01:44.8]}
16... Bf5 {[%clk 0:02:16]} 17. Qd2 {[%clk 0:01:44.7]} 17... Rac8 {[%clk
0:02:12.5]} 18. Rad1 {[%clk 0:01:40.3]} 18... Red8 {[%clk 0:02:06.1]} 19. Nc1
{[%clk 0:01:23]} 19... Bb6 {[%clk 0:01:58.9]} 20. Nd3 {[%clk 0:01:22.5]} 20...
h6 {[%clk 0:01:53.9]} 21. Rfe1 {[%clk 0:01:21.5]} 21... Re8 {[%clk 0:01:53.6]}
22. Rxe8+ {[%clk 0:01:17.6]} 22... Rxe8 {[%clk 0:01:53.3]} 23. Re1 {[%clk
0:01:18.2]} 23... Rxe1+ {[%clk 0:01:51.7]} 24. Qxe1 {[%clk 0:01:15.6]} 24... Qe6
{[%clk 0:01:48.8]} 25. Qxe6 {[%clk 0:01:12.8]} 25... Bxe6 {[%clk 0:01:48.9]} 26.
b3 {[%clk 0:01:10.4]} 26... f6 {[%clk 0:01:48]} 27. Kf1 {[%clk 0:01:08.9]} 27...
Kf7 {[%clk 0:01:41.2]} 28. Ke2 {[%clk 0:01:06.7]} 28... Bf5 {[%clk 0:01:33]} 29.
Bd6 {[%clk 0:00:59.9]} 29... h5 {[%clk 0:01:24.6]} 30. f3 {[%clk 0:00:57.5]}
30... Ke6 {[%clk 0:01:22.7]} 31. Bf8 {[%clk 0:00:55.8]} 31... g5 {[%clk
0:01:22.6]} 32. g4 {[%clk 0:00:55.9]} 32... Bg6 {[%clk 0:01:21.5]} 33. Kd2
{[%clk 0:00:48.5]} 33... Ba5+ {[%clk 0:01:19.3]} 34. b4 {[%clk 0:00:37.6]} 34...
Bb6 {[%clk 0:01:17.5]} 35. Bc5 {[%clk 0:00:21.2]} 35... hxg4 {[%clk 0:01:13]}
36. Bxb6 {[%clk 0:00:19.7]} 36... axb6 {[%clk 0:01:12.9]} 37. hxg4 {[%clk
0:00:19.1]} 37... Kd5 {[%clk 0:01:10.2]} 38. a3 {[%clk 0:00:15.3]} 38... Be8
{[%clk 0:00:52.6]} 39. Nf2 {[%clk 0:00:13.9]} 39... Bg6 {[%clk 0:00:48.4]} 40.
Nd3 {[%clk 0:00:10.8]} 40... Bh7 {[%clk 0:00:45.4]} 41. Ke2 {[%clk 0:00:09.5]}
41... Kc4 {[%clk 0:00:42.8]} 42. Kd2 {[%clk 0:00:09.1]} 42... Bg6 {[%clk
0:00:42.3]} 43. Nb2+ {[%clk 0:00:08.4]} 43... Kd5 {[%clk 0:00:42.4]} 44. Na4
{[%clk 0:00:07.7]} 44... Kc6 {[%clk 0:00:35.4]} 45. c3 {[%clk 0:00:03.6]} 45...
Kb5 {[%clk 0:00:21]} 46. Nb2 {[%clk 0:00:02.2]} 46... dxc3+ {[%clk 0:00:21.9]}
47. Kxc3 {[%clk 0:00:02.8]} 47... Kc6 {[%clk 0:00:22.6]} 48. Kd4 {[%clk
0:00:02.7]} 48... Bc2 {[%clk 0:00:17.1]} 49. Nc4 {[%clk 0:00:02.6]} 49... Bd1
{[%clk 0:00:11.8]} 50. Ke4 {[%clk 0:00:02.4]} 50... b5 {[%clk 0:00:08.3]} 51.
Ne3 {[%clk 0:00:02.3]} 51... Be2 {[%clk 0:00:07.8]} 52. Nf5 {[%clk 0:00:01]}
52... b6 {[%clk 0:00:07]} 53. Nd4+ {[%clk 0:00:01.1]} 53... Kd6 {[%clk
0:00:07.6]} 54. Nxe2 {[%clk 0:00:02]} 54... Ke6 {[%clk 0:00:08.5]} 55. Nd4+
{[%clk 0:00:02.1]} 55... Kd6 {[%clk 0:00:08.7]} 56. Nxb5+ {[%clk 0:00:03]} 56...
Kc6 {[%clk 0:00:08.6]} 57. Nd4+ {[%clk 0:00:03.9]} 57... Kd6 {[%clk 0:00:09.5]}
58. Kf5 {[%clk 0:00:04.1]} 58... Kd5 {[%clk 0:00:09.5]} 59. Ne6 {[%clk
0:00:04.6]} 59... Kc4 {[%clk 0:00:09]} 60. Kxf6 {[%clk 0:00:04.8]} 60... Kb3
{[%clk 0:00:09.9]} 61. Nc7 {[%clk 0:00:04.4]} 61... Kxa3 {[%clk 0:00:10.8]} 62.
b5 {[%clk 0:00:04.7]} 62... Kb4 {[%clk 0:00:10.9]} 63. Nd5+ {[%clk 0:00:03.1]}
63... Kc5 {[%clk 0:00:11.8]} 64. Nxb6 {[%clk 0:00:03.9]} 64... Kd6 {[%clk
0:00:12.7]} 65. Kxg5 {[%clk 0:00:04.6]} 65... Kc5 {[%clk 0:00:13.6]} 66. f4
{[%clk 0:00:05.2]} 66... Kxb6 {[%clk 0:00:13.9]} 67. f5 {[%clk 0:00:06.1]} 67...
Kxb5 {[%clk 0:00:14.8]} 68. f6 {[%clk 0:00:07]} 68... Kc6 {[%clk 0:00:15.7]} 69.
Kg6 {[%clk 0:00:07.9]} 69... Kd7 {[%clk 0:00:16.6]} 70. Kg7 {[%clk 0:00:08.7]}
70... Ke6 {[%clk 0:00:16.8]} 71. f7 {[%clk 0:00:09.2]} 71... Ke5 {[%clk
0:00:17.2]} 72. g5 {[%clk 0:00:09.5]} 72... Ke6 {[%clk 0:00:18.1]} 73. g6 {[%clk
0:00:10.4]} 73... Kd7 {[%clk 0:00:18.3]} 74. f8=Q {[%clk 0:00:10.7]} 74... Ke6
{[%clk 0:00:19.2]} 75. Qf7+ {[%clk 0:00:10.5]} 75... Kd6 {[%clk 0:00:19.2]} 76.
Kf6 {[%clk 0:00:11.1]} 76... Kc6 {[%clk 0:00:20.1]} 77. Qe7 {[%clk 0:00:11.1]}
77... Kb6 {[%clk 0:00:20.2]} 78. Qd7 {[%clk 0:00:11.3]} 1-0

[Event "Early-Titled-Tuesday-Blitz-July-09-2024"]
[Site "Chess.com"]
[Date "2024.07.09"]
[Round "9"]
[White "Msb2"]
[Black "Igor_Janik"]
[Result "1/2-1/2"]
[WhiteElo "3096"]
[BlackElo "2898"]
[TimeControl "180+1"]
[EndTime "9:47:17 PDT"]
[Termination "Game drawn - insufficient material"]

1. d4 {[%clk 0:03:00.9]} 1... Nf6 {[%clk 0:02:59.8]} 2. c4 {[%clk 0:03:01.4]}
2... e6 {[%clk 0:03:00.1]} 3. Nc3 {[%clk 0:03:02]} 3... Bb4 {[%clk 0:03:00.3]}
4. e3 {[%clk 0:03:02.3]} 4... O-O {[%clk 0:02:59.1]} 5. Bd2 {[%clk 0:03:02.6]}
5... b6 {[%clk 0:02:58.1]} 6. Nf3 {[%clk 0:03:02.2]} 6... d5 {[%clk 0:02:53.1]}
7. cxd5 {[%clk 0:03:02.1]} 7... exd5 {[%clk 0:02:53.3]} 8. Rc1 {[%clk
0:03:02.8]} 8... Re8 {[%clk 0:02:53.7]} 9. Ne5 {[%clk 0:03:02.5]} 9... Bb7
{[%clk 0:02:52.1]} 10. Bd3 {[%clk 0:03:02.4]} 10... a6 {[%clk 0:02:47.5]} 11.
O-O {[%clk 0:03:01.8]} 11... Nbd7 {[%clk 0:02:44.7]} 12. f4 {[%clk 0:03:01.3]}
12... Bxc3 {[%clk 0:02:44.3]} 13. Bxc3 {[%clk 0:03:01.5]} 13... Ne4 {[%clk
0:02:34.5]} 14. Bxe4 {[%clk 0:02:54.6]} 14... dxe4 {[%clk 0:02:34.6]} 15. Qb3
{[%clk 0:02:55.3]} 15... Nxe5 {[%clk 0:02:21.8]} 16. dxe5 {[%clk 0:02:53.5]}
16... Qd3 {[%clk 0:02:04.8]} 17. Rfe1 {[%clk 0:02:51.7]} 17... Bd5 {[%clk
0:02:00.9]} 18. Qa3 {[%clk 0:02:50]} 18... Qb5 {[%clk 0:01:57.2]} 19. b3 {[%clk
0:02:48.8]} 19... Be6 {[%clk 0:01:51.3]} 20. Qb2 {[%clk 0:02:47.9]} 20... Rad8
{[%clk 0:01:50.6]} 21. Qf2 {[%clk 0:02:48.1]} 21... Qd7 {[%clk 0:01:36.1]} 22.
b4 {[%clk 0:02:43.7]} 22... Bf5 {[%clk 0:01:29.6]} 23. Bd4 {[%clk 0:02:43.3]}
23... Re6 {[%clk 0:01:23.9]} 24. Rc3 {[%clk 0:02:37.6]} 24... Rg6 {[%clk
0:01:01.5]} 25. Kh1 {[%clk 0:02:32.3]} 25... b5 {[%clk 0:00:58.1]} 26. Rec1
{[%clk 0:02:30.4]} 26... c6 {[%clk 0:00:58.4]} 27. Qc2 {[%clk 0:02:27.6]} 27...
Rc8 {[%clk 0:00:56.4]} 28. a4 {[%clk 0:02:27]} 28... h5 {[%clk 0:00:55.5]} 29.
axb5 {[%clk 0:02:21.8]} 29... axb5 {[%clk 0:00:56.4]} 30. Qf2 {[%clk 0:02:21.8]}
30... Qe7 {[%clk 0:00:51.1]} 31. Bc5 {[%clk 0:02:20]} 31... Qe6 {[%clk
0:00:51.4]} 32. Rd1 {[%clk 0:02:12.8]} 32... Qe8 {[%clk 0:00:46.3]} 33. Ra3
{[%clk 0:02:09.6]} 33... Rd8 {[%clk 0:00:44.3]} 34. Rd4 {[%clk 0:02:00.5]} 34...
Rxd4 {[%clk 0:00:44]} 35. Bxd4 {[%clk 0:02:01.4]} 35... Qe6 {[%clk 0:00:43]} 36.
Qh4 {[%clk 0:01:54.2]} 36... Rh6 {[%clk 0:00:40.1]} 37. Qd8+ {[%clk 0:01:47.6]}
37... Kh7 {[%clk 0:00:40.2]} 38. Ra8 {[%clk 0:01:13.3]} 38... h4 {[%clk
0:00:31.4]} 39. Qg8+ {[%clk 0:00:52]} 39... Kg6 {[%clk 0:00:31.7]} 40. Rd8
{[%clk 0:00:52.9]} 40... Qc4 {[%clk 0:00:24.8]} 41. Rd6+ {[%clk 0:00:52.9]}
41... Kh5 {[%clk 0:00:25.3]} 42. h3 {[%clk 0:00:43.9]} 42... Qf1+ {[%clk
0:00:22]} 43. Kh2 {[%clk 0:00:44.1]} 43... Qe1 {[%clk 0:00:16.2]} 44. Qxg7
{[%clk 0:00:38.7]} 44... Bg6 {[%clk 0:00:12.7]} 45. Bc3 {[%clk 0:00:26]} 45...
Qxe3 {[%clk 0:00:05.5]} 46. Qf6 {[%clk 0:00:25.1]} 46... Qg3+ {[%clk 0:00:05.6]}
47. Kh1 {[%clk 0:00:25.7]} 47... e3 {[%clk 0:00:05.2]} 48. f5 {[%clk 0:00:10.7]}
48... e2 {[%clk 0:00:03.6]} 49. fxg6 {[%clk 0:00:11.3]} 49... e1=Q+ {[%clk
0:00:03.8]} 50. Bxe1 {[%clk 0:00:11.9]} 50... Qxe1+ {[%clk 0:00:04.7]} 51. Kh2
{[%clk 0:00:12.8]} 51... Qg3+ {[%clk 0:00:05.3]} 52. Kg1 {[%clk 0:00:13.6]}
52... Qe1+ {[%clk 0:00:04.9]} 53. Qf1 {[%clk 0:00:07.2]} 53... Qxf1+ {[%clk
0:00:05.3]} 54. Kxf1 {[%clk 0:00:08.1]} 54... Rxg6 {[%clk 0:00:06.1]} 55. Kf2
{[%clk 0:00:09]} 55... Kg5 {[%clk 0:00:06]} 56. Ke3 {[%clk 0:00:08.4]} 56... Kf5
{[%clk 0:00:06.4]} 57. Rxg6 {[%clk 0:00:07.6]} 57... fxg6 {[%clk 0:00:06.2]} 58.
Kd4 {[%clk 0:00:08.5]} 58... g5 {[%clk 0:00:05]} 59. Kc5 {[%clk 0:00:09.2]}
59... Kxe5 {[%clk 0:00:05.6]} 60. Kxc6 {[%clk 0:00:10]} 60... Kf4 {[%clk
0:00:06.4]} 61. Kxb5 {[%clk 0:00:10.8]} 61... Kg3 {[%clk 0:00:07.1]} 62. Kc6
{[%clk 0:00:10.4]} 62... Kxg2 {[%clk 0:00:07.7]} 63. b5 {[%clk 0:00:11.1]} 63...
g4 {[%clk 0:00:08.4]} 64. hxg4 {[%clk 0:00:09]} 64... h3 {[%clk 0:00:08.8]} 65.
b6 {[%clk 0:00:09.9]} 65... h2 {[%clk 0:00:09.4]} 66. b7 {[%clk 0:00:10.8]}
66... h1=Q {[%clk 0:00:10]} 67. b8=Q {[%clk 0:00:11.7]} 67... Qc1+ {[%clk
0:00:10.7]} 68. Kb7 {[%clk 0:00:06.4]} 68... Qb2+ {[%clk 0:00:10.8]} 69. Kc8
{[%clk 0:00:05.5]} 69... Qh8+ {[%clk 0:00:11.4]} 70. Kb7 {[%clk 0:00:05.9]}
70... Qb2+ {[%clk 0:00:11.9]} 71. Ka8 {[%clk 0:00:06.4]} 71... Qa3+ {[%clk
0:00:09.8]} 72. Qa7 {[%clk 0:00:04.2]} 72... Qf8+ {[%clk 0:00:10.3]} 73. Kb7
{[%clk 0:00:04.9]} 73... Qg7+ {[%clk 0:00:09.8]} 74. Kb6 {[%clk 0:00:05.5]}
74... Qxg4 {[%clk 0:00:10.5]} 75. Qa2+ {[%clk 0:00:06.2]} 75... Kh3 {[%clk
0:00:10.8]} 76. Qb3+ {[%clk 0:00:06.5]} 76... Qg3 {[%clk 0:00:11.3]} 77. Qxg3+
{[%clk 0:00:06.5]} 77... Kxg3 {[%clk 0:00:11.9]} 1/2-1/2

[Event "Early-Titled-Tuesday-Blitz-July-09-2024"]
[Site "Chess.com"]
[Date "2024.07.09"]
[Round "9"]
[White "FXDon77"]
[Black "Shield12"]
[Result "1-0"]
[WhiteElo "2890"]
[BlackElo "2967"]
[TimeControl "180+1"]
[EndTime "9:47:19 PDT"]
[Termination "FXDon77 won on time"]

1. e4 {[%clk 0:03:00.9]} 1... c5 {[%clk 0:02:59.7]} 2. Nf3 {[%clk 0:03:00.8]}
2... e6 {[%clk 0:03:00.3]} 3. c3 {[%clk 0:02:52.2]} 3... Nf6 {[%clk 0:02:59.4]}
4. e5 {[%clk 0:02:52.2]} 4... Nd5 {[%clk 0:02:59.6]} 5. d4 {[%clk 0:02:52.7]}
5... cxd4 {[%clk 0:03:00.5]} 6. cxd4 {[%clk 0:02:53.3]} 6... d6 {[%clk
0:03:01.2]} 7. Bc4 {[%clk 0:02:40.8]} 7... Be7 {[%clk 0:03:01.6]} 8. O-O {[%clk
0:02:40.1]} 8... O-O {[%clk 0:03:01.5]} 9. Bxd5 {[%clk 0:02:39.8]} 9... exd5
{[%clk 0:03:01.2]} 10. Nc3 {[%clk 0:02:40.5]} 10... Be6 {[%clk 0:02:58.5]} 11.
Bf4 {[%clk 0:02:41]} 11... dxe5 {[%clk 0:02:57.5]} 12. Nxe5 {[%clk 0:02:39.8]}
12... Nd7 {[%clk 0:02:34.6]} 13. Nxd7 {[%clk 0:02:34.3]} 13... Qxd7 {[%clk
0:02:35.5]} 14. Rc1 {[%clk 0:02:34.5]} 14... Rac8 {[%clk 0:02:34.6]} 15. Qd2
{[%clk 0:02:30.2]} 15... b5 {[%clk 0:02:31.9]} 16. Rfe1 {[%clk 0:02:29.5]} 16...
b4 {[%clk 0:02:31.4]} 17. Ne2 {[%clk 0:02:29.6]} 17... a5 {[%clk 0:02:28.9]} 18.
Rxc8 {[%clk 0:02:27.2]} 18... Rxc8 {[%clk 0:02:28.3]} 19. Rc1 {[%clk 0:02:27.9]}
19... Rc4 {[%clk 0:02:27.9]} 20. b3 {[%clk 0:02:27.2]} 20... Rxc1+ {[%clk
0:02:28]} 21. Qxc1 {[%clk 0:02:27.5]} 21... h6 {[%clk 0:02:17]} 22. Qc7 {[%clk
0:02:14.5]} 22... Bd8 {[%clk 0:02:15.9]} 23. Qxd7 {[%clk 0:02:03.8]} 23... Bxd7
{[%clk 0:02:16.8]} 24. Nc1 {[%clk 0:01:58.9]} 24... Bf5 {[%clk 0:02:08.3]} 25.
Kf1 {[%clk 0:01:58.6]} 25... g5 {[%clk 0:01:49.3]} 26. Bd6 {[%clk 0:01:53.8]}
26... f6 {[%clk 0:01:32.9]} 27. Ke2 {[%clk 0:01:51.1]} 27... Bb1 {[%clk
0:01:31.6]} 28. a3 {[%clk 0:01:44.4]} 28... bxa3 {[%clk 0:01:29.3]} 29. Bxa3
{[%clk 0:01:45]} 29... Kf7 {[%clk 0:01:29.2]} 30. Nd3 {[%clk 0:01:39.2]} 30...
Bc7 {[%clk 0:01:09.3]} 31. h3 {[%clk 0:01:35.4]} 31... h5 {[%clk 0:01:08.7]} 32.
Nc5 {[%clk 0:01:35.2]} 32... Bd6 {[%clk 0:01:06.2]} 33. b4 {[%clk 0:01:33.4]}
33... axb4 {[%clk 0:01:03.9]} 34. Bxb4 {[%clk 0:01:33.5]} 34... Ba2 {[%clk
0:01:03.8]} 35. Nd3 {[%clk 0:01:24.8]} 35... Bc7 {[%clk 0:01:04.1]} 36. f4
{[%clk 0:00:58.5]} 36... Kg6 {[%clk 0:01:03.4]} 37. fxg5 {[%clk 0:00:58.4]}
37... fxg5 {[%clk 0:01:04.3]} 38. Ne5+ {[%clk 0:00:54.1]} 38... Kf5 {[%clk
0:01:03.4]} 39. Kf3 {[%clk 0:00:54.2]} 39... h4 {[%clk 0:00:56.4]} 40. Be7
{[%clk 0:00:44.9]} 40... Bb6 {[%clk 0:00:49.5]} 41. Nc6 {[%clk 0:00:34.3]} 41...
Bb3 {[%clk 0:00:49.2]} 42. Bc5 {[%clk 0:00:31.1]} 42... Bc7 {[%clk 0:00:45.6]}
43. Ne5 {[%clk 0:00:29]} 43... Bd1+ {[%clk 0:00:43]} 44. Ke3 {[%clk 0:00:29.3]}
44... Bc2 {[%clk 0:00:37.3]} 45. Be7 {[%clk 0:00:28.9]} 45... Be4 {[%clk
0:00:34.8]} 46. Nf3 {[%clk 0:00:28.9]} 46... Bf4+ {[%clk 0:00:30.7]} 47. Ke2
{[%clk 0:00:28.5]} 47... Bc2 {[%clk 0:00:27.5]} 48. Bd8 {[%clk 0:00:27.9]} 48...
Ba4 {[%clk 0:00:27.1]} 49. Be7 {[%clk 0:00:27.5]} 49... Bb5+ {[%clk 0:00:27.4]}
50. Kf2 {[%clk 0:00:27.3]} 50... Ba6 {[%clk 0:00:21.2]} 51. Bd8 {[%clk
0:00:26.9]} 51... Kg6 {[%clk 0:00:18.1]} 52. Ne5+ {[%clk 0:00:25.9]} 52... Kh5
{[%clk 0:00:18.1]} 53. Be7 {[%clk 0:00:21.4]} 53... Bb5 {[%clk 0:00:18.1]} 54.
Bd8 {[%clk 0:00:21.3]} 54... Ba4 {[%clk 0:00:18.5]} 55. Be7 {[%clk 0:00:21.1]}
55... Bc2 {[%clk 0:00:18.7]} 56. Bd8 {[%clk 0:00:18]} 56... Bg3+ {[%clk
0:00:18.7]} 57. Ke3 {[%clk 0:00:17.1]} 57... Be4 {[%clk 0:00:17.8]} 58. Nf3
{[%clk 0:00:17.2]} 58... g4 {[%clk 0:00:17.4]} 59. hxg4+ {[%clk 0:00:16.3]}
59... Kxg4 {[%clk 0:00:18.3]} 60. Ne5+ {[%clk 0:00:09.3]} 60... Kf5 {[%clk
0:00:17.8]} 61. Nf3 {[%clk 0:00:09.1]} 61... Kg4 {[%clk 0:00:10.8]} 62. Ne5+
{[%clk 0:00:09.1]} 62... Bxe5 {[%clk 0:00:03.7]} 63. dxe5 {[%clk 0:00:09.7]}
63... Bxg2 {[%clk 0:00:04.6]} 64. Kf2 {[%clk 0:00:09.7]} 64... Be4 {[%clk
0:00:03.9]} 65. e6 {[%clk 0:00:08.5]} 65... Bg6 {[%clk 0:00:03.9]} 66. e7 {[%clk
0:00:08.1]} 66... Be8 {[%clk 0:00:03.9]} 67. Bc7 {[%clk 0:00:08.1]} 67... d4
{[%clk 0:00:03.3]} 68. Bb6 {[%clk 0:00:04.7]} 68... d3 {[%clk 0:00:01.9]} 69.
Ke3 {[%clk 0:00:04.8]} 1-0

[Event "Early-Titled-Tuesday-Blitz-July-09-2024"]
[Site "Chess.com"]
[Date "2024.07.09"]
[Round "9"]
[White "Dreamer_01"]
[Black "CrimeFightingSpider07"]
[Result "0-1"]
[WhiteElo "2449"]
[BlackElo "2616"]
[TimeControl "180+1"]
[EndTime "9:47:19 PDT"]
[Termination "CrimeFightingSpider07 won on time"]

1. Nf3 {[%clk 0:02:57.1]} 1... Nf6 {[%clk 0:02:49.6]} 2. c4 {[%clk 0:02:57.1]}
2... e6 {[%clk 0:02:49.8]} 3. g3 {[%clk 0:02:54.6]} 3... d5 {[%clk 0:02:50.3]}
4. Bg2 {[%clk 0:02:52]} 4... Be7 {[%clk 0:02:46.6]} 5. O-O {[%clk 0:02:52]} 5...
O-O {[%clk 0:02:46.8]} 6. d3 {[%clk 0:02:45.8]} 6... c5 {[%clk 0:02:30.7]} 7. b3
{[%clk 0:02:43.6]} 7... d4 {[%clk 0:02:23.6]} 8. a3 {[%clk 0:02:13.1]} 8... Nc6
{[%clk 0:02:18.3]} 9. Bb2 {[%clk 0:02:12.5]} 9... e5 {[%clk 0:02:16.4]} 10. Nbd2
{[%clk 0:02:12.9]} 10... Bf5 {[%clk 0:02:12.6]} 11. Ng5 {[%clk 0:01:54.7]} 11...
Qd7 {[%clk 0:02:06.6]} 12. Nge4 {[%clk 0:01:48.7]} 12... Nxe4 {[%clk 0:01:55.9]}
13. Nxe4 {[%clk 0:01:46.5]} 13... Bh3 {[%clk 0:01:55.7]} 14. Bxh3 {[%clk
0:01:23.8]} 14... Qxh3 {[%clk 0:01:56.6]} 15. b4 {[%clk 0:01:23.8]} 15... f5
{[%clk 0:01:38.9]} 16. Nxc5 {[%clk 0:01:20.8]} 16... Bxc5 {[%clk 0:01:37.6]} 17.
bxc5 {[%clk 0:01:21.7]} 17... f4 {[%clk 0:01:38.3]} 18. Kh1 {[%clk 0:00:38]}
18... Rf6 {[%clk 0:01:32.2]} 19. Rg1 {[%clk 0:00:35.8]} 19... Raf8 {[%clk
0:01:30]} 20. Qf1 {[%clk 0:00:26.1]} 20... Qxf1 {[%clk 0:01:22.1]} 21. Raxf1
{[%clk 0:00:24.1]} 21... fxg3 {[%clk 0:01:21.4]} 22. f3 {[%clk 0:00:19.4]} 22...
gxh2 {[%clk 0:01:12.5]} 23. Kxh2 {[%clk 0:00:20.3]} 23... Ne7 {[%clk 0:00:52.6]}
24. a4 {[%clk 0:00:17.4]} 24... Ng6 {[%clk 0:00:48]} 25. Bc1 {[%clk 0:00:10.4]}
25... Rc8 {[%clk 0:00:45.5]} 26. Bg5 {[%clk 0:00:09.3]} 26... Rf7 {[%clk
0:00:37.2]} 27. Rb1 {[%clk 0:00:09.8]} 27... Rxc5 {[%clk 0:00:35.5]} 28. Rb5
{[%clk 0:00:10.5]} 28... Rxb5 {[%clk 0:00:23.2]} 29. axb5 {[%clk 0:00:11.4]}
29... b6 {[%clk 0:00:23.2]} 30. Rc1 {[%clk 0:00:11]} 30... Nf8 {[%clk
0:00:21.5]} 31. c5 {[%clk 0:00:10.2]} 31... bxc5 {[%clk 0:00:20.5]} 32. Rxc5
{[%clk 0:00:11.1]} 32... h6 {[%clk 0:00:13.9]} 33. Bd2 {[%clk 0:00:07.9]} 33...
Nd7 {[%clk 0:00:14.5]} 34. Rc7 {[%clk 0:00:06.3]} 34... Nb6 {[%clk 0:00:14.2]}
35. Rc6 {[%clk 0:00:05.4]} 35... Rd7 {[%clk 0:00:12.1]} 36. Ba5 {[%clk 0:00:05]}
36... Nd5 {[%clk 0:00:12.5]} 37. Re6 {[%clk 0:00:02.9]} 37... Re7 {[%clk
0:00:13.1]} 38. Rd6 {[%clk 0:00:02.8]} 38... Nf4 {[%clk 0:00:13]} 39. Rd8+
{[%clk 0:00:01.3]} 39... Kf7 {[%clk 0:00:12.8]} 40. Bb4 {[%clk 0:00:01.8]} 40...
Rb7 {[%clk 0:00:12.9]} 41. Rf8+ {[%clk 0:00:02.2]} 41... Kg6 {[%clk 0:00:12.7]}
42. Bd6 {[%clk 0:00:02.9]} 42... Rxb5 {[%clk 0:00:12.2]} 43. Bxe5 {[%clk
0:00:03.4]} 43... Rxe5 {[%clk 0:00:12.1]} 44. Rxf4 {[%clk 0:00:04]} 44... Rxe2+
{[%clk 0:00:12.8]} 45. Kg3 {[%clk 0:00:04.7]} 45... Ra2 {[%clk 0:00:08.4]} 46.
Rxd4 {[%clk 0:00:05.1]} 46... a5 {[%clk 0:00:09.2]} 47. Rd6+ {[%clk 0:00:05.5]}
47... Kf5 {[%clk 0:00:09.7]} 48. Rd7 {[%clk 0:00:05.7]} 48... g6 {[%clk
0:00:09.6]} 49. Rf7+ {[%clk 0:00:05.3]} 49... Ke6 {[%clk 0:00:09.5]} 50. Ra7
{[%clk 0:00:05.3]} 50... a4 {[%clk 0:00:10.2]} 51. Kf4 {[%clk 0:00:05.4]} 51...
g5+ {[%clk 0:00:09.8]} 52. Ke4 {[%clk 0:00:05.4]} 52... a3 {[%clk 0:00:09.9]}
53. Ra6+ {[%clk 0:00:05.5]} 53... Kf7 {[%clk 0:00:10.5]} 54. Kf5 {[%clk
0:00:05.9]} 54... Rf2 {[%clk 0:00:09.3]} 55. Ra7+ {[%clk 0:00:06.3]} 55... Kf8
{[%clk 0:00:08.7]} 56. Kg6 {[%clk 0:00:06.7]} 56... Rxf3 {[%clk 0:00:09.3]} 57.
Rxa3 {[%clk 0:00:07.1]} 57... Rh3 {[%clk 0:00:08.4]} 58. Ra8+ {[%clk 0:00:06]}
58... Ke7 {[%clk 0:00:08.8]} 59. d4 {[%clk 0:00:05.9]} 59... Kd6 {[%clk
0:00:09]} 60. Rd8+ {[%clk 0:00:05.7]} 60... Ke6 {[%clk 0:00:09.4]} 61. Re8+
{[%clk 0:00:03.9]} 61... Kd5 {[%clk 0:00:09.8]} 62. Rd8+ {[%clk 0:00:04.4]}
62... Kc4 {[%clk 0:00:10.1]} 63. d5 {[%clk 0:00:04.5]} 63... Kc5 {[%clk
0:00:10.6]} 64. d6 {[%clk 0:00:04.9]} 64... Kc6 {[%clk 0:00:11]} 65. Kf5 {[%clk
0:00:04.1]} 65... Rd3 {[%clk 0:00:08.3]} 66. Rc8+ {[%clk 0:00:01.9]} 66... Kd7
{[%clk 0:00:08]} 0-1